Workbook

Sheet Start
B1: Bildungs- und Kulturdirektion des Kantons Bern
B4: Berechnung Elterngebühren
B5: Tagesschule
B22: Kontakt: Camille Cuvit, 031 636 59 36, camille.cuvit@be.ch
B29: Version 1.1/2024

Sheet Adresse
A3: ="Adresse "&Start!B5 -> Adresse Tagesschule
B6: Beispiel | C6: Adresse
B7: Name Institution | C7: Tagesschule Muster
B8: Strasse | C8: Finkenrain 12
B9: PLZ und Ort | C9: 3013 Bern
B10: Telefon | C10: 031 000 00 00
B12: Leitung | C12: Vorname Name
C13: Stefanie Küng
B16: Kontaktperson Rechnung
B17: Vorname Name | C17: Elisabeth Adam
B18: Strasse | C18: Finkenrain 12
B19: PLZ und Ort | C19: 3013 Bern
B20: Telefon für Rücksprache | C20: 031 000 00 00
B21: E-Mail für Rücksprache | C21: xx@xx

Sheet Eckwerte
A1: ="Eckwerte " & Start!B5 -> Eckwerte Tagesschule
B5: Eckwerte | D5: CHF
B7: Gebühr / Stunde | C7: maximal | D7: 12.86
B8: Gebühr / Stunde | C8: minimal | D8: 0.82
B9: Massgebendes Jahreseinkommen | C9: maximal | D9: 160000
B10: Massgebendes Jahreseinkommen | C10: minimal | D10: 43000
B11: Familienrabatt | C11: Anzahl | D11: 1.07
B12: Verpflegungskosten | D12: 0
B15: Betreuungsangebot
B17: Betreuungsstunden / Tag maximal | D17: 7
B18: maximale Anzahl Betreuungstage pro Jahr | D18: 195
B19: maximale Anzahl Betreuungsstunden pro Tag | D19: 8
B22: Abzug für Familiengrösse | D22: CHF
B23: bei einer Familiengrösse von 3 Personen pauschal | D23: 3800
B24: bei einer Familiengrösse von 4 Personen pauschal | D24: 6000
B25: bei einer Familiengrösse von 5 Personen pauschal | D25: 7000
B26: bei einer Familiengrösse von 6 Personen pauschal | D26: 7700

Sheet Datenerfassung
D1: ="Datenerfassung "&Start!B5 -> Datenerfassung Tagesschule
D2: Personalien
D3: Anrede | E3: Familie
D4: Antragsteller/in I (Vorname / Name) | E4: Fränzi Muster
D5: Antragsteller/in II (Vorname / Name) | E5: Hans Muster
D6: Kind (Vorname / Name)
D7: Geburtsdatum Kind
D8: Rechnungsadresse / Name | E8: =E4 -> Fränzi Muster | F8: Strasse | H8: Mustergasse 11 | J8: PLZ und Ort | K8: 3600 Thun
D9: Familienadresse / Name (falls nicht Rechnungsadresse) | F9: Strasse | J9: PLZ und Ort
B11: Positionsnummer Steuern | D11: Allgemeine Angaben zur Berechnung
I12: 0
D13: Familiengrösse gemäss Tagesschulverordnung Artikel 14 (Antragstellende + Kinder der Antragstellenden) | H13: 4 | I13: =IF(H13<=1,"Familiengrösse muss grösser 1 sein","") -> 
D14: Gewichtete Anzahl der Familienmitglieder (Kinder mit geteilter Obhut werden mit 0.5 gerechnet) | H14: 4
D15: Gebühren pro Mittagessen und Anzahl pro Woche | F15: 8 | G15: Anz. | H15: 1 | I15: =IF(H15=0,0,F15*H15) -> 8 | N15: 5 | O15: =N15*H22 -> 15
D16: Gebühren pro Frühstück und Anzahl pro Woche | F16: 1 | G16: Anz. | H16: 1 | I16: =IF(H16=0,0,F16*H16) -> 1
D17: Gebühren pro z'Vieri und Anzahl pro Woche | F17: 1.5 | G17: Anz. | H17: 1 | I17: =IF(H17=0,0,F17*H17) -> 1.5 | N17: Betreuungsstunden Pro Tag | O17: Max Betreuung
D18: Betreuungsstunden pro Woche | G18: h | H18: 1 | I18: =IF((H18*H22)-P21>O22,"Eingabe ist zu hoch",((H18*H22)-P21)) -> 3 | J18: =IF(H18<=0,"Bitte Betreuungsstunden erfassen","") ->  | N18: =Eckwerte!D19 -> 8 | O18: 40
D19: Abrechnungsperiode für Berechnung | G19: Dat. | H19: 2024-01-08 | I19: 2024-01-30 | J19: =IF(OR(H19<=0,I19<=0),"Bitte Abrechnungsperiode erfassen","") -> 
D20: Anzahl Ferienwochen in Abrechnungsperiode | F20: Abzug | G20: Wo. | H20: 0
D21: Anzahl ausfallende Betreuungsstunden in Abrechnungsperiode (z. B. Sporttag, Karfreitag usw.) | F21: Abzug | G21: h | H21: 0 | N21: Abzug Betreuungsstunden | P21: =H21 -> 0
D22: Anzahl Schulwochen in Abrechnungsperiode | G22: Wo. | H22: =ROUND((I19-H19)/P23,0)-H20 -> 3 | O22: =O18*H22 -> 120 | P22: =H20 -> 0
B23: Formular | C23: Ziffer | N23: Tage in Wochen | P23: 7
D24: Grunddaten zur Berechnung (basierend auf dem Vorjahr) Einkünfte aus unselbständiger und selbständiger Erwerbstätigkeit
H25: Antragsteller/in I | I25: Antragsteller/in II
B26: 2 | C26: 2.21 | D26: Nettolohn | H26: 50000 | I26: 60000
C27: 2.25 | D27: weitere steuerbare Einkünfte | H27: 500 | I27: 50
C28: 2.22/2.23 | D28: Ersatzeinkommen | H28: 600 | I28: 60
C29: 2.24 | D29: erhaltene Unterhaltsbeiträge | H29: 700 | I29: 70 | L29: Eingabefeld
B30: 9/10/8 | C30: 9210/9210/8.1/8.2 | D30: Geschäftsgewinn - Durchschnitt der letzten 3 Jahre | H30: 800 | I30: 80 | L30: Berechnung
B31: 3 7 | C31: 31 minus 53 7.1 | D31: Bruttoerträge aus beweglichem und unbeweglichem Vermögen | H31: 900 | I31: 90
B32: 8 | C32: 8.3 | D32: Einkommen aus Erbengemeinschaften/Miteingentümerschaften | H32: 1000 | I32: 100
B33: 5 | C33: 5.1 | D33: Abzug für geleistete Unterhaltsbeiträge | H33: 1100 | I33: 110
B34: 4 | C34: 4.3 | D34: Schuldzinsen (Zinsen) | H34: 1200 | I34: 120
B35: 3 7 | C35: 51 7.2 | D35: Kosten für die Wertschriftenverwaltung und Grundstückskosten | H35: 1300 | I35: 130
D36: Weitere Einkünfte | H36: 0 | I36: 0 | N36: Lohn | O36: =IF(I46>100000,ROUND(((I46-100000)*5%/12)*20,0)/20,0) -> 0 | P36: =SUM(H29:H36)+H26 -> 57000 | Q36: =SUM(I29:I36)+I26 -> 60700
P37: =H28 -> 600 | Q37: =I28 -> 60
D38: Einkommen aus selbständiger Erwerbstätigkeit
B39: 9 | C39: 9210 | D39: In der Steuererklärung ausgewiesener Geschäftsgewinn (Durchschnitt der vergangenen drei Jahre) | P39: =SUM(P36:P37) -> 57600 | Q39: =SUM(Q36:Q37) -> 60760
D43: Total | H43: =SUM(H26:H32)-H33-H34-H35 -> 50900 | I43: =SUM(I26:I32)-I33-I34-I35 -> 60090
N44: Vermögen | P44: =H46 -> 40000 | Q44: =I46 -> 10000
D45: Nettovermögen | P45: =ROUND((H46*$F$47)*20,0)/20 -> 2000 | Q45: =ROUND((I46*$F$47)*20,0)/20 -> 500
B46: 3 4 4 7 4 8 | C46: 32 minus 53 4.1 4.2 7.0 4.3 8.3 | D46: Nettovermögen | H46: 40000 | I46: 10000 | Q46: =IF((P45+Q45)>0,P45+Q45,0) -> 2500
D47: Berechnung | F47: 0.05 | H47: =H46*F47 -> 2000 | I47: =I46*H47 -> 20000000
D48: Davon 5% | H48: =P45 -> 2000 | I48: =Q45 -> 500
Q49: Total
D50: Abzüge | N50: Abzüge | O50: =H51 -> 0 | P50: =I51 -> 0 | Q50: =SUM(O50:P50) -> 0
B51: 5 | C51: 5.1 | D51: Bezahlte Unterhaltsbeiträge | H51: 0 | I51: 0 | P51: 3 | Q51: =H53 -> 
D53: bei einer Familiengrösse von drei Personen pauschal pro Person | F53: 3800 | H53: =IF($H$13=3,F53*H14,"") ->  | P53: 4 | Q53: =H54 -> 24000
D54: bei einer Familiengrösse von vier Personen pauschal pro Person | F54: 6000 | H54: =IF($H$13=4,F54*H14,"") -> 24000 | P54: 5 | Q54: =H55 -> 
D55: bei einer Familiengrösse von fünf Personen pauschal pro Person | F55: 7000 | H55: =IF($H$13=5,F55*H14,"") ->  | P55: =H13 -> 4 | Q55: =H56 -> 
D56: bei einer Familiengrösse ab sechs Personen pauschal pro Person | F56: 7700 | H56: =IF($H$13>=6,F56*H14,"") ->  | P56: Gesamttotal | Q56: =SUM(Q50:Q55) -> 24000
D57: Total Abzüge | H57: =IF(Q56="",0,Q56) -> 24000
P58: E K
D59: Zusammenzug | P59: =H43 -> 50900 | Q59: =I43 -> 60090
D60: Einkünfte | H60: =IF(P64="","",P64) -> 50900 | I60: =IF(Q64="","",Q64) -> 60090 | J60: =SUM(H60:I60) -> 110990 | P60: 0 | Q60: 0
D61: 5% des Nettovermögens | J61: =Q46 -> 2500
D62: Abzug bezahlte Unterhaltsbeiträge | J62: =Q50 -> 0
D63: Zwischentotal (Einkünfte und Vermögen) | J63: =J60+J61 -> 113490
D64: Abzüge für Familiengrösse | J64: =R69 -> 24000 | O64: EK | P64: =SUM(P59:P61) -> 50900 | Q64: =SUM(Q59:Q61) -> 60090 | R64: =SUM(P64:Q64) -> 110990 | S64: =R64 -> 110990
D65: Massgebendes Einkommen | J65: =J63-J64 -> 89490 | O65: Abzüge UB | Q65: =H51 -> 0 | R65: =I51 -> 0 | S65: =SUM(Q65:R65) -> 0
D66: Massgebendes monatliches Einkommen | J66: =R74 -> 0
O67: Vermögen | S67: =J61 -> 2500
S68: =S64-S65+S67 -> 113490
D69: Gebühr pro Stunde | J69: =ROUND(IF($J$65<=Eckwerte!$D$10,Eckwerte!$D$8,IF($J$65>=Eckwerte!$D$9,Eckwerte!$D$7,((Eckwerte!D7-Eckwerte!D8)/(Eckwerte!D9-Eckwerte!D10)*($J$65-Eckwerte!D10)+Eckwerte!D8))),2) -> 5.6 | O69: Abzüge | R69: =SUM(H53:I56) -> 24000
D70: Maximaltarif | J70: =Eckwerte!D7 -> 12.86 | R70: =S68-R69 -> 89490
D71: Subvention Kanton und Gemeinde pro Betreuungsstunde | F71: hier löschen. | J71: =J70-J69 -> 7.26
D72: Betreuungsstunden für Abrechnungsperiode | J72: =I18 -> 3
D73: Betreuungsgebühr für Abrechnungsperiode | J73: =ROUND((J87)*20,0)/20 -> 16.8
D74: Verpflegungsgebühr | J74: =IF(SUM(I15:I17)="","",SUM(I15:I17)*H22) -> 31.5
D75: Betreuungs- und Mahlzeitengebühren für Abrechnungsperiode | J75: =SUM(J73:J74) -> 48.3
D77: Einmalige individuelle Gutschriften oder Belastungen können direkt in der Rechnung eingegeben werden.
H82: =(Eckwerte!D7-Eckwerte!D8)/(Eckwerte!D9-Eckwerte!D10)*(Datenerfassung!J65-Eckwerte!D10)+Eckwerte!D8 -> 5.604099145 | I82: =(Eckwerte!D7-Eckwerte!D8)/(Eckwerte!D9-Eckwerte!D10)*(Datenerfassung!H52-Eckwerte!D10)+Eckwerte!D8
H83: =E92 -> 5.604099145
C84: FG | H84: =IF(H83<=Eckwerte!D8,(Eckwerte!D8),IF(H83>=Eckwerte!D7,(Eckwerte!D7),(Datenerfassung!H83))) -> 5.604099145 | I84: =H85 -> 5.604099145
C85: 2 | D85: =IF(((Eckwerte!$D$7-Eckwerte!$D$8)/(Eckwerte!$D$9-Eckwerte!$D$10)*(Datenerfassung!$J$63-Eckwerte!$D$10)+Eckwerte!$D$8)<=Eckwerte!$D$8,Eckwerte!$D$8,IF(((Eckwerte!$D$7-Eckwerte!$D$8)/(Eckwerte!$D$9-Eckwerte!$D$10)*(Datenerfassung!$J$63-Eckwerte!$D$10)+Eckwerte!$D$8)>=Eckwerte!$D$7,Eckwerte!$D$7,((Eckwerte!$D$7-Eckwerte!$D$8)/(Eckwerte!$D$9-Eckwerte!$D$10)*(Datenerfassung!$J$63-Eckwerte!$D$10)+Eckwerte!$D$8))) -> 8.073842735 | E85: =IF(C85=$H$13,D85,0) -> 0 | H85: =IF(H84=Eckwerte!D8,Eckwerte!D8,H84) -> 5.604099145
C86: 3 | D86: =IF(((Eckwerte!$D$7-Eckwerte!$D$8)/(Eckwerte!$D$9-Eckwerte!$D$10)*(Datenerfassung!$J$63-C86*F53-Eckwerte!$D$10)+Eckwerte!$D$8)<=Eckwerte!$D$8,Eckwerte!$D$8,IF(((Eckwerte!$D$7-Eckwerte!$D$8)/(Eckwerte!$D$9-Eckwerte!$D$10)*(Datenerfassung!$J$63-C86*F53-Eckwerte!$D$10)+Eckwerte!$D$8)>=Eckwerte!$D$7,Eckwerte!$D$7,((Eckwerte!$D$7-Eckwerte!$D$8)/(Eckwerte!$D$9-Eckwerte!$D$10)*(Datenerfassung!$J$63-C86*F53-Eckwerte!$D$10)+Eckwerte!$D$8))) -> 6.90071453 | E86: =IF(C86=$H$13,D86,0) -> 0 | H86: =(H85*$H$18) -> 5.604099145 | I86: =(I84*$H$18) -> 5.604099145
C87: 4 | D87: =IF(((Eckwerte!$D$7-Eckwerte!$D$8)/(Eckwerte!$D$9-Eckwerte!$D$10)*(Datenerfassung!$J$63-C87*F54-Eckwerte!$D$10)+Eckwerte!$D$8)<=Eckwerte!$D$8,Eckwerte!$D$8,IF(((Eckwerte!$D$7-Eckwerte!$D$8)/(Eckwerte!$D$9-Eckwerte!$D$10)*(Datenerfassung!$J$63-C87*F54-Eckwerte!$D$10)+Eckwerte!$D$8)>=Eckwerte!$D$7,Eckwerte!$D$7,((Eckwerte!$D$7-Eckwerte!$D$8)/(Eckwerte!$D$9-Eckwerte!$D$10)*(Datenerfassung!$J$63-C87*F54-Eckwerte!$D$10)+Eckwerte!$D$8))) -> 5.604099145 | E87: 5.604099145 | J87: =J69*J72 -> 16.8
C88: 5 | D88: =IF(((Eckwerte!$D$7-Eckwerte!$D$8)/(Eckwerte!$D$9-Eckwerte!$D$10)*(Datenerfassung!$J$63-C88*F55-Eckwerte!$D$10)+Eckwerte!$D$8)<=Eckwerte!$D$8,Eckwerte!$D$8,IF(((Eckwerte!$D$7-Eckwerte!$D$8)/(Eckwerte!$D$9-Eckwerte!$D$10)*(Datenerfassung!$J$63-C88*F55-Eckwerte!$D$10)+Eckwerte!$D$8)>=Eckwerte!$D$7,Eckwerte!$D$7,((Eckwerte!$D$7-Eckwerte!$D$8)/(Eckwerte!$D$9-Eckwerte!$D$10)*(Datenerfassung!$J$63-C88*F55-Eckwerte!$D$10)+Eckwerte!$D$8))) -> 4.472133333 | E88: 0 | H88: =H87/4 -> 0
C89: 6 | D89: =IF(((Eckwerte!$D$7-Eckwerte!$D$8)/(Eckwerte!$D$9-Eckwerte!$D$10)*(Datenerfassung!$J$63-C89*$F$56-Eckwerte!$D$10)+Eckwerte!$D$8)<=Eckwerte!$D$8,Eckwerte!$D$8,IF(((Eckwerte!$D$7-Eckwerte!$D$8)/(Eckwerte!$D$9-Eckwerte!$D$10)*(Datenerfassung!$J$63-C89*$F$56-Eckwerte!$D$10)+Eckwerte!$D$8)>=Eckwerte!$D$7,Eckwerte!$D$7,((Eckwerte!$D$7-Eckwerte!$D$8)/(Eckwerte!$D$9-Eckwerte!$D$10)*(Datenerfassung!$J$63-C89*$F$56-Eckwerte!$D$10)+Eckwerte!$D$8))) -> 3.319586325 | E89: 0
C90: 7 | D90: =IF(((Eckwerte!$D$7-Eckwerte!$D$8)/(Eckwerte!$D$9-Eckwerte!$D$10)*(Datenerfassung!$J$63-C90*$F$56-Eckwerte!$D$10)+Eckwerte!$D$8)<=Eckwerte!$D$8,Eckwerte!$D$8,IF(((Eckwerte!$D$7-Eckwerte!$D$8)/(Eckwerte!$D$9-Eckwerte!$D$10)*(Datenerfassung!$J$63-C90*$F$56-Eckwerte!$D$10)+Eckwerte!$D$8)>=Eckwerte!$D$7,Eckwerte!$D$7,((Eckwerte!$D$7-Eckwerte!$D$8)/(Eckwerte!$D$9-Eckwerte!$D$10)*(Datenerfassung!$J$63-C90*$F$56-Eckwerte!$D$10)+Eckwerte!$D$8))) -> 2.527210256 | E90: 0
C91: 8 | D91: =IF(((Eckwerte!$D$7-Eckwerte!$D$8)/(Eckwerte!$D$9-Eckwerte!$D$10)*(Datenerfassung!$J$63-C91*$F$56-Eckwerte!$D$10)+Eckwerte!$D$8)<=Eckwerte!$D$8,Eckwerte!$D$8,IF(((Eckwerte!$D$7-Eckwerte!$D$8)/(Eckwerte!$D$9-Eckwerte!$D$10)*(Datenerfassung!$J$63-C91*$F$56-Eckwerte!$D$10)+Eckwerte!$D$8)>=Eckwerte!$D$7,Eckwerte!$D$7,((Eckwerte!$D$7-Eckwerte!$D$8)/(Eckwerte!$D$9-Eckwerte!$D$10)*(Datenerfassung!$J$63-C91*$F$56-Eckwerte!$D$10)+Eckwerte!$D$8))) -> 1.734834188 | E91: 0
E92: =SUM(E85:E91) -> 5.604099145

Sheet Belegetext
B2: Belegtext, Bemerkungen
B3: Zahlungsbedingungen: zahlbar innert 30 Tagen
B10: Fusszeile Rechnung

Sheet Rechnung
B1: =IF(Adresse!C7="","",Adresse!C7) -> Tagesschule Muster
B2: =IF(Adresse!C8="","",Adresse!C8) -> Finkenrain 12
B3: =IF(Adresse!C9="","",Adresse!C9) -> 3013 Bern
B5: Kontakt:
B6: =IF(Adresse!C17="","",Adresse!C17) -> Elisabeth Adam
B7: =IF(Adresse!C18="","",Adresse!C18) -> Finkenrain 12
B8: =IF(Adresse!C19="","",Adresse!C19) -> 3013 Bern | H8: =Datenerfassung!E$3 -> Familie
B9: =IF(Adresse!C20="","",Adresse!C20) -> 031 000 00 00 | H9: =Datenerfassung!E$8 -> Fränzi Muster
B10: =IF(Adresse!C21="","",Adresse!C21) -> xx@xx | H10: =Datenerfassung!H$8 -> Mustergasse 11
B11: =IF(Adresse!C22="","",Adresse!C22) ->  | H11: =Datenerfassung!K$8 -> 3600 Thun
B17: Rechnung | L17: =TODAY() -> 2024-02-15
B20: ="Gebührenabrechnung für "&Datenerfassung!F6&" "&Datenerfassung!E6 -> Gebührenabrechnung für
B21: für die Periode vom | G21: =Datenerfassung!H19 -> 2024-01-08 | H21: =IF(G21=0,"","-") -> - | I21: =Datenerfassung!I19 -> 2024-01-30
B23: =Datenerfassung!D22 -> Anzahl Schulwochen in Abrechnungsperiode | G23: =Datenerfassung!H22 -> 3
B24: ="Anzahl "&Datenerfassung!D18 -> Anzahl Betreuungsstunden pro Woche | G24: =Datenerfassung!H18 -> 1
B25: Abzug Betreuungsstunden infolge Schulausfällen | G25: =Datenerfassung!H21 -> 0
B26: Gesamttotal Betreuungsstunden | G26: =Datenerfassung!I18 -> 3
B27: Betreuungsgebühr pro Stunde | G27: =Datenerfassung!J69 -> 5.6
B29: Gebühren für die Betreuung | F29: ="" ->  | G29: =G26 -> 3 | H29: zu | I29: =G27 -> 5.6 | L29: =Datenerfassung!J73 -> 16.8
B31: Anzahl Frühstück | G31: =IF(Datenerfassung!H16=0,"",Datenerfassung!H16*G23) -> 3 | I31: =Datenerfassung!F16 -> 1 | L31: =IF(Datenerfassung!I16="","",Datenerfassung!I16*$G$23) -> 3
B32: Anzahl Mittagessen | G32: =IF(Datenerfassung!H15=0,"",Datenerfassung!H15*G23) -> 3 | I32: =Datenerfassung!F15 -> 8 | L32: =IF(Datenerfassung!I15="","",Datenerfassung!I15*$G$23) -> 24
B33: Anzahl z'Vieri | G33: =IF(Datenerfassung!H17=0,"",Datenerfassung!H17*G23) -> 3 | I33: =Datenerfassung!F17 -> 1.5 | L33: =IF(Datenerfassung!I17="","",Datenerfassung!I17*$G$23) -> 4.5
B35: Gebühren für die Verpflegung | L35: =Datenerfassung!J74 -> 31.5
B37: Total Gebühren für die Abrechnungsperiode | L37: =Datenerfassung!J75+L36 -> 48.3
B42: Unterschrift der Mutter
E43: =IF(Datenerfassung!H4="","",Datenerfassung!H4&" "&Datenerfassung!E4) -> 
B46: Unterschrift des Vaters
E47: =IF(Datenerfassung!H5="","",Datenerfassung!H5&" "&Datenerfassung!E5) -> 
B50: Unterschrift der Leiterin
B51: =Adresse!C7 -> Tagesschule Muster
E52: =IF(Adresse!C13="","",Adresse!C13) -> Stefanie Küng
B55: =IF(Belegetext!B3="","",Belegetext!B3) -> Zahlungsbedingungen: zahlbar innert 30 Tagen
B56: =IF(Belegetext!B4="","",Belegetext!B4) -> 
B57: =IF(Belegetext!B5="","",Belegetext!B5) -> 
B58: =IF(Belegetext!B6="","",Belegetext!B6) -> 
B59: =IF(Belegetext!B7="","",Belegetext!B7) -> 
B60: =IF(Belegetext!B8="","",Belegetext!B8) -> 
B61: =Belegetext!B11 -> 0

Sheet Berechnung
B1: =Rechnung!B1 -> Tagesschule Muster
B2: =Rechnung!B2 -> Finkenrain 12
B3: =Rechnung!B3 -> 3013 Bern
B5: =Rechnung!B5 -> Kontakt:
B6: =Rechnung!B6 -> Elisabeth Adam
B7: =Rechnung!B7 -> Finkenrain 12
B8: =Rechnung!B8 -> 3013 Bern
B9: =Rechnung!B9 -> 031 000 00 00
B10: =Rechnung!B10 -> xx@xx
B14: ="Berechnung Massgebendes Einkommen + Gebühren" -> Berechnung Massgebendes Einkommen + Gebühren | F14: =TODAY() -> 2024-02-15
B17: =IF(Datenerfassung!E4="","",Datenerfassung!E4&" "&Datenerfassung!F4) -> Fränzi Muster
B18: =Datenerfassung!D26 -> Nettolohn | F18: =IF(Datenerfassung!H26="","",Datenerfassung!H26) -> 50000
B19: =Datenerfassung!D27 -> weitere steuerbare Einkünfte | F19: =IF(Datenerfassung!H27="","",Datenerfassung!H27) -> 500
B20: =Datenerfassung!D28 -> Ersatzeinkommen | F20: =IF(Datenerfassung!H28="","",Datenerfassung!H28) -> 600
B21: =Datenerfassung!D29 -> erhaltene Unterhaltsbeiträge | F21: =IF(Datenerfassung!H29="","",Datenerfassung!H29) -> 700
B22: =Datenerfassung!D30 -> Geschäftsgewinn - Durchschnitt der letzten 3 Jahre | F22: =IF(Datenerfassung!H30="","",Datenerfassung!H30) -> 800
B23: =Datenerfassung!D31 -> Bruttoerträge aus beweglichem und unbeweglichem Vermögen | F23: =IF(Datenerfassung!H31="","",Datenerfassung!H31) -> 900
B24: =Datenerfassung!D32 -> Einkommen aus Erbengemeinschaften/Miteingentümerschaften | F24: =IF(Datenerfassung!H32="","",Datenerfassung!H32) -> 1000
B25: =Datenerfassung!D33 -> Abzug für geleistete Unterhaltsbeiträge | F25: =IF(Datenerfassung!H33="","",Datenerfassung!H33) -> 1100
B26: =Datenerfassung!D34 -> Schuldzinsen (Zinsen) | F26: =IF(Datenerfassung!H34="","",Datenerfassung!H34) -> 1200
B27: =Datenerfassung!D35 -> Kosten für die Wertschriftenverwaltung und Grundstückskosten | F27: =IF(Datenerfassung!H35="","",Datenerfassung!H35) -> 1300
B29: Einkommen Antragsteller/in I | F29: =Datenerfassung!H43 -> 50900
B31: =IF(Datenerfassung!E5="","",Datenerfassung!E5&" "&Datenerfassung!F5) -> Hans Muster
B32: =Datenerfassung!D26 -> Nettolohn | F32: =IF(Datenerfassung!I26="","",Datenerfassung!I26) -> 60000
B33: =Datenerfassung!D27 -> weitere steuerbare Einkünfte | F33: =IF(Datenerfassung!I27="","",Datenerfassung!I27) -> 50
B34: =Datenerfassung!D28 -> Ersatzeinkommen | F34: =IF(Datenerfassung!I28="","",Datenerfassung!I28) -> 60
B35: =Datenerfassung!D29 -> erhaltene Unterhaltsbeiträge | F35: =IF(Datenerfassung!I29="","",Datenerfassung!I29) -> 70
B36: =Datenerfassung!D30 -> Geschäftsgewinn - Durchschnitt der letzten 3 Jahre | F36: =IF(Datenerfassung!I30="","",Datenerfassung!I30) -> 80
B37: =Datenerfassung!D31 -> Bruttoerträge aus beweglichem und unbeweglichem Vermögen | F37: =IF(Datenerfassung!I31="","",Datenerfassung!I31) -> 90
B38: =Datenerfassung!D32 -> Einkommen aus Erbengemeinschaften/Miteingentümerschaften | F38: =IF(Datenerfassung!I32="","",Datenerfassung!I32) -> 100
B39: =Datenerfassung!D33 -> Abzug für geleistete Unterhaltsbeiträge | F39: =IF(Datenerfassung!I33="","",Datenerfassung!I33) -> 110
B40: =Datenerfassung!D34 -> Schuldzinsen (Zinsen) | F40: =IF(Datenerfassung!I34="","",Datenerfassung!I34) -> 120
B41: =Datenerfassung!D35 -> Kosten für die Wertschriftenverwaltung und Grundstückskosten | F41: =IF(Datenerfassung!I35="","",Datenerfassung!I35) -> 130
B43: Einkommen Antragsteller/in II | F43: =Datenerfassung!I43 -> 60090
B45: Anrechenbarer Vermögensanteil | F45: =Datenerfassung!H48+Datenerfassung!I48 -> 2500
B48: =Datenerfassung!D63 -> Zwischentotal (Einkünfte und Vermögen) | F48: =Datenerfassung!J63 -> 113490
B50: =Datenerfassung!D64 -> Abzüge für Familiengrösse | F50: =Datenerfassung!J64 -> 24000
B52: =Datenerfassung!D65 -> Massgebendes Einkommen | F52: =Datenerfassung!J65 -> 89490
C53: Einkommen pro Monat | F53: =Datenerfassung!J66 -> 0
B55: =Datenerfassung!D69 -> Gebühr pro Stunde | F55: =Datenerfassung!J69 -> 5.6
F57: =IF(F29="",0,F29) -> 50900
F58: =IF(F43="",0,F43) -> 60090
B60: ="Anzahl Betreuungsstunden in "&Datenerfassung!H22&" Wochen" -> Anzahl Betreuungsstunden in 3 Wochen | E60: =Datenerfassung!I18 -> 3
B62: ="Betreuungsgebühr für "&Datenerfassung!H22&" Wochen " -> Betreuungsgebühr für 3 Wochen | F62: =Datenerfassung!J73 -> 16.8
B63: ="Kosten Mahlzeiten für "&Datenerfassung!H22&" Wochen" -> Kosten Mahlzeiten für 3 Wochen | F63: =Datenerfassung!J74 -> 31.5
B64: ="Total Gebühren für "&Datenerfassung!H22&" Wochen" -> Total Gebühren für 3 Wochen | F64: =Datenerfassung!J75 -> 48.3
B66: =Datenerfassung!D75 -> Betreuungs- und Mahlzeitengebühren für Abrechnungsperiode | F66: =Datenerfassung!J75 -> 48.3
B68: =Datenerfassung!D70 -> Maximaltarif | F68: =Eckwerte!D7 -> 12.86
B70: =Datenerfassung!D71 -> Subvention Kanton und Gemeinde pro Betreuungsstunde | F70: =F68-F55 -> 7.26
B73: =Datenerfassung!D78 -> 0
B74: =Datenerfassung!D79 -> 0
B75: =Datenerfassung!D80 -> 0
B76: =Datenerfassung!D81 -> 0
